bitfinex-derivatives/quotes_SOLF0:USTF0_20250207
["timestamp","ask_amount","ask_price","bid_price","bid_amount"]
[1738971556075,9.41030069,191.78,191.77,16.87635143]
[1738971556577,0.03514303,191.79,191.77,16.87635143]
[1738971557576,0.03514303,191.79,191.77,5.25296157]
[1738971561578,9.41030069,191.78,191.77,5.25296157]
[1738971563683,9.41030069,191.78,191.77,0.03916157]
[1738971570289,0.03514303,191.79,191.77,0.03916157]
[1738971570588,0.03514303,191.79,191.77,5.25266157]
[1738971571683,0.03514303,191.79,191.77,0.03916157]
[1738971571880,0.03514303,191.79,191.78,5.2135]
[1738971573388,0.03514303,191.79,191.78,30.95481724]
[1738971573687,4.303e-05,191.79,191.78,40.36511793]
[1738971575682,4.303e-05,191.79,191.78,158.85298204]
[1738971575990,188.4901,191.86,191.84,5.2118]
[1738971576190,12.47770069,191.87,191.84,5.2118]
[1738971577090,12.50176845,191.87,191.84,5.24905715]
[1738971578482,12.50176845,191.87,191.84,0.03725715]
[1738971578687,9.41030069,191.85,191.84,0.03725715]
[1738971579393,9.41030069,191.85,191.82,12.26699396]
[1738971580190,9.41030069,191.85,191.82,7.05469396]
[1738971580591,9.41030069,191.85,191.82,7.08871061]
[1738971581192,9.41030069,191.83,191.82,0.03401665]
[1738971582494,9.41030069,191.85,191.82,0.03401665]
[1738971582897,9.41030069,191.85,191.82,5.24641665]
[1738971585897,9.41030069,191.85,191.83,5.212]
[1738971589601,9.41030069,191.85,191.82,5.24631665]
[1738971590805,9.41030069,191.83,191.81,7.05469396]
[1738971591203,9.41030069,191.83,191.8,28.21877586]
[1738971591707,9.41030069,191.83,191.8,28.2530854]
[1738971592407,9.41030069,191.85,191.81,5.2124]
[1738971593204,9.41030069,191.83,191.8,9.79962794]
[1738971594111,9.41030069,191.83,191.8,4.58692794]
[1738971594309,9.41030069,191.83,191.81,5.2126]
[1738971598620,9.41030069,191.83,191.8,5.24720954]
[1738971601721,9.41030069,191.83,191.8,0.03430954]
[1738971602015,9.41030069,191.83,191.81,5.2126]
[1738971603023,9.41030069,191.85,191.8,0.03430954]
[1738971603823,9.41030069,191.85,191.83,5.2121]
[1738971608824,9.41030069,191.85,191.83,12.26679396]
[1738971614529,9.41030069,191.85,191.83,7.05469396]
[1738971616430,9.41030069,191.85,191.83,11.61811336]
[1738971621735,9.41030069,191.85,191.82,4.5634194]
[1738971621935,9.41030069,191.83,191.82,4.5634194]
[1738971627841,14.62240069,191.83,191.82,2.0533194]
[1738971629143,14.62240069,191.83,191.8,7.0890035]
[1738971629340,9.41030069,191.81,191.8,7.0890035]
[1738971632345,9.41030069,191.81,191.8,0.03430954]
[1738971638942,9.41030069,191.81,191.78,4.55342479]
[1738971639148,9.41030069,191.79,191.78,4.55342479]
[1738971639340,9.41030069,191.79,191.78,2.04302479]
[1738971639546,14.62350069,191.79,191.78,2.04302479]
[1738971641246,14.62350069,191.79,191.77,0.03336099]
[1738971641443,9.41030069,191.79,191.77,0.03336099]
[1738971641646,5.2135,191.78,191.77,0.03336099]
[1738971646444,9.41030069,191.79,191.72,7.05469396]
[1738971646646,9.41030069,191.73,191.72,7.05469396]
[1738971649246,9.41030069,191.73,191.71,21.19710777]
[1738971649247,9.41030069,191.73,191.71,0.03302587]
[1738971654252,5.2151,191.72,191.71,0.03302587]
[1738971658157,188.4901,191.72,191.64,7.05469396]
[1738971658457,9.41030069,191.68,191.65,5.217]
[1738971658658,9.41030069,191.66,191.64,7.05469396]
[1738971658857,5.217,191.65,191.64,7.05469396]
[1738971659658,5.2173,191.64,191.63,21.19727295]
[1738971659860,14.62760069,191.64,191.63,21.19727295]
[1738971660459,9.41030069,191.64,191.62,56.43755175]
[1738971660660,5.2176,191.63,191.62,56.43755175]
[1738971661660,5.2178,191.62,191.61,0.03786955]
[1738971661957,14.62810069,191.62,191.61,0.03786955]
[1738971666673,9.41030069,191.62,191.54,5.22]
[1738971666873,9.41030069,191.57,191.51,1.6484]
[1738971667871,5.25311352,191.56,191.52,0.03371832]
[1738971668775,0.03341352,191.56,191.52,5.25421832]
[1738971669073,0.03341352,191.56,191.52,0.03371832]
[1738971669372,14.63010069,191.55,191.52,0.03371832]
[1738971670472,9.41030069,191.55,191.52,0.03371832]
[1738971672577,14.63010069,191.55,191.52,0.03371832]
[1738971672770,9.41030069,191.55,191.52,0.03371832]
[1738971673174,14.63010069,191.55,191.52,0.03371832]
[1738971673478,9.41030069,191.53,191.52,0.03371832]
[1738971685182,14.63060069,191.53,191.52,0.03371832]
[1738971685387,9.41030069,191.53,191.52,0.03371832]
[1738971685686,9.41030069,191.53,191.52,5.25431832]
[1738971687287,0.03341352,191.56,191.52,0.03371832]
[1738971689287,0.03341352,191.56,191.53,5.2202]
[1738971692187,9.41030069,191.55,191.53,5.2202]
[1738971693988,9.41030069,191.55,191.54,5.22]
[1738971694290,0.03341352,191.56,191.54,5.22]
[1738971696287,9.41030069,191.55,191.54,5.22]
[1738971701693,9.41030069,191.55,191.54,9.64885212]
[1738971702993,9.41030069,191.55,191.54,4.42885212]
[1738971703393,0.03341352,191.56,191.54,4.42885212]
[1738971704800,9.41030069,191.61,191.54,9.41030069]
[1738971706098,0.03705048,191.59,191.56,0.03619182]
[1738971706692,9.41030069,191.63,191.56,9.44649251]
[1738971706899,9.41030069,191.65,191.58,9.41030069]
[1738971707296,9.41030069,191.65,191.58,30.57325931]
[1738971707696,9.41030069,191.65,191.63,5.2173]
[1738971708398,9.41030069,191.65,191.64,5.2173]
[1738971708702,9.41030069,191.65,191.6,0.03898162]
[1738971709797,9.41030069,191.65,191.62,5.2176]
[1738971713206,9.41030069,191.65,191.6,21.20194024]
[1738971713507,9.41030069,191.65,191.6,0.03898162]
[1738971714907,9.41030069,191.65,191.64,5.2173]
[1738971716511,9.41030069,191.65,191.61,5.218]
[1738971716711,9.41030069,191.65,191.6,0.03898162]
[1738971717710,0.03293729,191.66,191.6,0.03898162]
[1738971717913,0.03293729,191.66,191.62,9.41030069]
[1738971718812,0.03293729,191.66,191.65,5.217]
[1738971727717,3.729e-05,191.66,191.65,5.217]
[1738971732317,9.41030069,191.67,191.64,7.06974518]
[1738971733414,9.44732623,191.67,191.64,7.10461971]
[1738971733612,9.44732623,191.67,191.64,12.32181971]
[1738971734116,9.44732623,191.67,191.64,7.10461971]
[1738971735317,9.44732623,191.67,191.64,0.03487453]
[1738971735617,9.44732623,191.67,191.64,5.25207453]
[1738971738320,0.03702554,191.67,191.64,5.25207453]
[1738971741620,0.03702554,191.67,191.65,5.217]
[1738971744214,0.03702554,191.67,191.64,7.10461971]
[1738971744420,0.03702554,191.67,191.66,5.2167]
[1738971746022,2.554e-05,191.67,191.66,14.62700069]
[1738971746222,188.4901,191.74,191.66,9.41030069]
[1738971746521,58.07584027,191.92,191.64,7.10461971]
[1738971746522,9.41030069,191.79,191.73,5.2148]
[1738971746911,9.41030069,191.77,191.71,9.41030069]
[1738971747117,9.41030069,191.77,191.71,14.62550069]
[1738971747317,9.41030069,191.77,191.71,5.2152]
[1738971747518,0.03969285,191.75,191.72,5.25033469]
[1738971748325,0.03969285,191.75,191.73,5.2148]
[1738971749822,0.03969285,191.75,191.74,5.2146]
[1738971750421,0.03969285,191.75,191.72,0.03523469]
[1738971751026,0.03969285,191.75,191.73,5.2146]
[1738971751229,0.03969285,191.75,191.72,0.03523469]
[1738971751725,0.03969285,191.75,191.73,5.2146]
[1738971752122,0.03969285,191.75,191.72,0.03523469]
[1738971752525,0.03969285,191.75,191.74,5.2146]
[1738971755325,9.285e-05,191.75,191.74,5.2146]
[1738971757426,3.1904,191.82,191.74,66.06147488]
[1738971757636,3.1904,191.82,191.75,9.41030069]
[1738971758130,3.1904,191.82,191.77,5.2137]
[1738971758331,3.1904,191.82,191.75,9.41030069]
[1738971758632,0.0350779,191.8,191.77,0.03498985]
[1738971760731,0.0350779,191.8,191.79,5.2132]
[1738971764635,0.0350779,191.8,191.79,14.62350069]
[1738971768027,9.41030069,191.85,191.79,9.41030069]
[1738971768230,9.41030069,191.85,191.84,5.2119]
[1738971770638,0.03336489,191.86,191.83,0.04012033]
[1738971770829,0.03336489,191.86,191.84,5.2119]
[1738971773436,0.03336489,191.86,191.83,0.04012033]
[1738971773637,0.03336489,191.86,191.84,5.2116]
[1738971773937,0.03336489,191.86,191.83,0.04012033]
[1738971774142,0.03336489,191.86,191.84,5.2119]
[1738971775240,0.03336489,191.86,191.85,5.2116]
[1738971776334,0.03336489,191.86,191.83,0.04012033]
[1738971776537,9.41030069,191.85,191.83,0.04012033]
[1738971776739,0.03336489,191.86,191.83,0.04012033]
[1738971777842,0.03336489,191.86,191.85,5.2116]
[1738971787955,0.03336489,191.86,191.85,14.62190069]
[1738971793458,0.03336489,191.86,191.85,40.1843676]
[1738971797559,0.00041692,191.86,191.85,40.1843676]
[1738971800161,0.00041692,191.86,191.85,75.47967711]
[1738971800366,0.18558,191.92,191.87,5.2108]
[1738971800761,0.18558,191.92,191.85,70.26807711]
[1738971800959,0.18558,191.92,191.88,5.2108]
[1738971801365,0.18558,191.92,191.88,5.24992646]
[1738971804568,197.90040069,191.93,191.88,5.24992646]
[1738971806371,3.1963,191.95,191.89,9.41030069]
[1738971806570,9.41030069,191.99,191.95,5.2089]
[1738971806869,9.41030069,191.99,191.93,9.41030069]
[1738971807072,9.41030069,191.99,191.95,0.03330886]
[1738971807270,9.41030069,191.99,191.96,5.2084]
[1738971807773,3.2102,192.01,191.98,5.2078]
[1738971807971,3.2102,192.01,191.97,9.41030069]
[1738971808366,3.2102,192.01,191.98,5.2078]
[1738971808966,0.198,192.02,191.98,5.2078]
[1738971809273,0.198,192.02,191.97,9.41030069]
[1738971809475,0.198,192.02,191.99,5.2077]
[1738971811075,0.198,192.02,191.97,9.41030069]
[1738971811275,0.198,192.02,192.0,5.2075]
[1738971812275,0.198,192.02,191.99,5.24504326]
[1738971812676,0.198,192.02,191.99,0.03734326]
[1738971812872,0.198,192.02,191.99,9.44764395]
[1738971813278,0.198,192.02,192.0,5.2075]
[1738971813576,0.198,192.02,191.99,9.44764395]
[1738971813877,0.198,192.02,192.0,5.2075]
[1738971814176,0.198,192.02,191.99,9.44764395]
[1738971815881,0.198,192.02,192.01,5.2072]
[1738971817882,0.198,192.02,192.01,14.61750069]
[1738971820483,9.41030069,192.07,192.02,5.2069]
[1738971821485,9.41030069,192.07,192.01,9.41030069]
[1738971821687,9.41030069,192.07,192.03,5.2067]
[1738971822082,9.41030069,192.07,192.03,5.24042705]
[1738971825591,14.61590069,192.07,192.03,0.03372705]
[1738971825789,9.41030069,192.05,192.03,0.03372705]
[1738971826687,3.1327,192.09,192.03,0.03372705]
[1738971826893,9.41030069,192.07,192.03,0.03372705]
[1738971828894,9.41030069,192.07,192.03,5.24012705]
[1738971830797,12.54300069,192.09,192.05,5.206]
[1738971831191,0.21042,192.12,192.07,9.41030069]
[1738971831392,0.21042,192.12,192.09,9.41030069]
[1738971832090,0.21042,192.12,192.1,5.2048]
[1738971833796,0.21042,192.12,192.09,9.41030069]
[1738971834199,0.21042,192.12,192.11,14.61480069]
[1738971835793,9.41030069,192.19,192.11,9.41030069]
[1738971835999,9.41030069,192.19,192.14,5.2035]
[1738971836298,14.61210069,192.21,192.13,9.4485261]
[1738971837496,9.41030069,192.19,192.13,0.03822541]
[1738971837794,9.41030069,192.19,192.11,9.41030069]
[1738971837998,9.41030069,192.19,192.14,0.03399644]
[1738971838694,9.41030069,192.21,192.14,0.03399644]
[1738971839197,9.41030069,192.21,192.16,5.2031]
[1738971839902,9.41030069,192.21,192.17,5.2029]
[1738971840900,9.41030069,192.21,192.14,0.03399644]
[1738971841102,9.41030069,192.19,192.15,5.2034]
[1738971841601,9.41030069,192.19,192.15,5.24054085]
[1738971845006,9.41030069,192.19,192.15,0.03714085]
[1738971846602,14.61270069,192.19,192.15,0.03714085]
[1738971849714,5.2028,192.18,192.15,0.03714085]
[1738971850314,3.2301,192.18,192.15,0.03714085]
[1738971850613,8.4328,192.18,192.15,0.03714085]
[1738971852915,9.41030069,192.17,192.15,0.03714085]
[1738971853716,14.61320069,192.17,192.11,14.61480069]
[1738971854518,14.61320069,192.17,192.11,9.41030069]
[1738971854817,14.61320069,192.17,192.12,5.2042]
[1738971855115,0.03913192,192.16,192.12,5.23782186]
[1738971856323,0.03913192,192.16,192.12,0.03362186]
[1738971856520,0.03913192,192.16,192.13,5.2039]
[1738971856824,0.03913192,192.16,192.15,9.41030069]
[1738971857023,0.03913192,192.16,192.15,14.61370069]
[1738971858423,0.03913192,192.16,192.15,5.2034]
[1738971859730,0.03913192,192.16,192.13,9.41030069]
[1738971859932,0.03913192,192.16,192.14,5.2037]
[1738971867737,0.03913192,192.16,192.12,28.41954654]
[1738971869142,0.03913192,192.16,192.13,4.42787186]
[1738971873245,0.03913192,192.16,192.12,12.33430303]
[1738971873952,5.24233192,192.16,192.12,7.13010303]
[1738971875248,5.2035,192.15,192.12,7.13010303]
[1738971875847,5.2035,192.15,192.12,11.56125211]
[1738971876048,0.03913192,192.16,192.12,11.56125211]
[1738971876249,5.2038,192.14,192.12,11.56125211]
[1738971877943,9.41030069,192.15,192.12,11.56125211]
[1738971878150,0.03913192,192.16,192.12,11.56125211]
[1738971878852,0.03913192,192.16,192.13,5.2038]
[1738971880152,5.24243192,192.16,192.13,5.2038]
[1738971880446,9.41030069,192.15,192.12,0.03362186]
[1738971881450,5.204,192.13,192.12,0.03362186]
[1738971885553,9.41030069,192.13,192.07,7.09648117]
[1738971885757,5.205,192.1,192.07,7.09648117]
[1738971886753,5.205,192.1,192.07,7.1328223]
[1738971886957,5.23823582,192.1,192.07,7.1328223]
[1738971887959,5.23823582,192.1,192.07,12.3383223]
[1738971888366,5.23823582,192.1,192.07,5.24184113]
[1738971889260,5.23823582,192.1,192.07,0.03634113]
[1738971891858,0.03323582,192.1,192.07,0.03634113]
[1738971894465,0.03323582,192.1,192.07,5.24184113]
[1738971896369,0.03323582,192.1,192.08,5.2053]
[1738971898876,0.03323582,192.1,192.09,5.2051]
[1738971902479,0.03323582,192.1,192.08,5.2052]
[1738971902879,0.03323582,192.1,192.07,0.03634113]
[1738971903081,5.2052,192.09,192.07,0.03634113]
[1738971903275,9.41030069,192.09,192.07,0.03634113]
[1738971904881,5.2053,192.08,192.07,0.03634113]
[1738971914084,193.6954,192.08,192.07,0.03634113]
[1738971916089,5.2064,192.05,192.02,5.207]
[1738971917089,5.24468336,192.05,192.02,5.24516866]
[1738971917687,5.24468336,192.05,192.02,0.03816866]
[1738971919392,5.2067,192.03,192.02,0.03816866]
[1738971928096,14.61680069,192.04,192.02,0.03816866]
[1738971933398,5.2067,192.03,192.02,0.03816866]
[1738971933599,9.41030069,192.04,192.02,0.03816866]
[1738971933995,14.61670069,192.04,192.02,0.03816866]
[1738971940904,9.41030069,192.04,192.02,0.03816866]
[1738971941100,5.2067,192.03,192.02,0.03816866]
[1738971941306,9.41030069,192.04,191.98,7.09648117]
[1738971941509,9.41030069,191.99,191.98,7.09648117]
[1738971941912,9.41030069,191.99,191.97,28.38592468]
[1738971943409,188.4901,191.98,191.97,28.38592468]
[1738971943608,193.6982,191.98,191.97,28.38592468]
[1738971944305,5.2081,191.98,191.97,28.38592468]
[1738971944711,5.2081,191.98,191.97,25.87672468]
[1738971945205,5.2081,191.98,191.97,7.09648117]
[1738971945405,5.2083,191.97,191.96,56.47760378]
[1738971945609,205.61860069,191.97,191.96,56.47760378]
[1738971946003,205.61860069,191.97,191.96,51.45900378]
[1738971946210,5.2089,191.95,191.94,84.65632763]
[1738971946407,9.41030069,191.95,191.89,61.65371284]
[1738971946703,9.41030069,191.91,191.89,61.65371284]
[1738971947505,14.62030069,191.91,191.89,56.44331284]
[1738971949610,14.62030069,191.91,191.88,0.03901747]
[1738971949809,9.41030069,191.91,191.9,5.2102]
[1738971951011,9.41030069,191.91,191.88,0.03901747]
[1738971951213,9.41030069,191.91,191.89,5.2098]
[1738971955209,0.0373896,191.92,191.91,5.2094]
[1738971958110,0.0373896,191.92,191.9,5.2096]
[1738971961312,0.0373896,191.92,191.89,4.8779]
[1738971961519,0.0373896,191.92,191.89,10.0878]
[1738971962819,0.0373896,191.92,191.89,4.8779]
[1738971963010,0.0373896,191.92,191.9,5.2097]
[1738971964526,0.0373896,191.92,191.91,5.2094]
[1738971966829,9.41030069,192.01,191.99,5.2071]
[1738971967024,9.41030069,192.03,191.96,9.41030069]
[1738971967419,191.0,192.04,192.02,5.2064]
[1738971967625,191.0,192.04,191.98,9.41030069]
[1738971968131,0.03984252,192.03,192.0,5.2067]
[1738971968629,0.03984252,192.03,191.99,0.03335146]
[1738971969030,0.03984252,192.03,192.01,5.2065]
[1738971969927,0.03984252,192.03,191.99,0.03335146]
[1738971971831,0.03984252,192.03,191.99,5.24055146]
[1738971973832,0.03984252,192.03,192.0,5.2069]
[1738971975629,9.45014321,192.03,192.0,5.2069]
[1738971976336,9.45014321,192.03,191.99,0.03335146]
[1738971976529,9.45014321,192.03,192.01,5.2067]
[1738971976732,0.03984252,192.03,191.99,0.03335146]
[1738971977735,0.03984252,192.03,192.02,5.2064]
[1738971987843,0.03984252,192.03,192.02,14.61670069]
[1738971989643,0.03984252,192.03,192.02,5.2064]
[1738971998445,0.03984252,192.03,192.02,14.61670069]
[1738971999443,4.252e-05,192.03,192.02,14.61670069]
[1738972009664,4.252e-05,192.03,192.02,18.63171858]
[1738972014463,9.41030069,192.15,192.05,5.2054]
[1738972014666,9.41030069,192.17,192.1,9.41030069]
[1738972014861,9.41030069,192.19,192.12,9.41030069]
[1738972015058,9.41030069,192.23,192.16,9.41030069]
[1738972015755,0.03710142,192.21,192.18,0.03793612]
[1738972016662,0.03710142,192.21,192.19,5.2017]
[1738972020570,0.03710142,192.21,192.18,0.03793612]
[1738972020768,0.03710142,192.21,192.2,5.2016]
[1738972023670,9.41030069,192.32,192.2,9.41030069]
[1738972023861,200.41030069,192.34,192.26,9.41030069]
[1738972024168,9.41030069,192.32,192.24,9.41030069]
[1738972024370,9.41030069,192.32,192.28,5.1993]
[1738972024572,9.41030069,192.3,192.24,9.41030069]
[1738972024973,0.03405271,192.29,192.25,0.036261]
[1738972025368,0.03405271,192.29,192.26,9.41030069]
[1738972025971,0.03405271,192.29,192.28,5.1994]
[1738972028367,0.03405271,192.29,192.28,14.60970069]
[1738972028675,9.41030069,192.42,192.28,9.41030069]
[1738972028872,9.41030069,192.42,192.33,9.41030069]
[1738972029371,9.41030069,192.42,192.36,5.1971]
[1738972029568,9.41030069,192.4,192.33,9.41030069]
[1738972029764,9.41030069,192.4,192.37,0.03845782]
[1738972030267,9.41030069,192.38,192.37,0.03845782]
[1738972030466,9.41030069,192.4,192.37,0.03845782]
[1738972031771,0.03622004,192.41,192.37,0.03845782]
[1738972034366,5.23212004,192.41,192.37,0.03845782]
[1738972035073,9.41030069,192.4,192.37,0.03845782]
[1738972036175,14.60650069,192.4,192.37,0.03845782]
[1738972036777,9.41030069,192.38,192.29,9.41030069]
[1738972036974,9.41030069,192.36,192.29,9.41030069]
[1738972038082,0.03667282,192.34,192.31,0.03334645]
[1738972040684,9.44697351,192.34,192.31,0.03334645]
[1738972040984,5.1981,192.33,192.31,0.03334645]
[1738972044390,5.1983,192.32,192.31,0.03334645]
[1738972044691,9.41030069,192.32,192.21,9.41030069]
[1738972044897,191.03667282,192.34,192.21,9.41030069]
[1738972044898,9.41030069,192.29,192.21,9.41030069]
[1738972045393,9.41030069,192.29,192.24,5.2004]
[1738972045588,9.41030069,192.29,192.23,9.41030069]
[1738972045892,0.03799576,192.28,192.25,0.0347636]
[1738972046792,5.1999,192.26,192.25,0.0347636]
[1738972049291,14.61000069,192.27,192.25,0.0347636]
[1738972049595,0.03799576,192.28,192.25,0.0347636]
[1738972052095,5.1999,192.26,192.25,0.0347636]
[1738972052301,9.41030069,192.27,192.17,9.41030069]
[1738972052500,9.41030069,192.25,192.17,9.41030069]
[1738972052797,5.2007,192.24,192.17,9.41030069]
[1738972053200,5.2007,192.24,192.19,5.2016]
[1738972053392,5.2007,192.24,192.2,0.0388661]
[1738972053598,0.03994762,192.23,192.2,0.0388661]
[1738972055790,5.24094762,192.23,192.2,0.0388661]
[1738972056500,0.03994762,192.23,192.2,0.0388661]
[1738972056699,5.2013,192.21,192.2,0.0388661]
[1738972057699,14.61160069,192.21,192.2,0.0388661]
[1738972062403,14.65114831,192.23,192.2,0.0388661]
[1738972062604,9.45024831,192.23,192.2,0.0388661]
[1738972062906,5.2012,192.22,192.2,0.0388661]
[1738972063204,9.45024831,192.23,192.2,0.0388661]
[1738972064205,5.2012,192.22,192.2,0.0388661]
[1738972064705,9.45024831,192.23,192.2,0.0388661]
[1738972064903,14.61160069,192.21,192.2,0.0388661]
[1738972066803,9.41030069,192.21,192.2,0.0388661]
[1738972067003,9.45024831,192.23,192.2,0.0388661]
[1738972067207,0.03994762,192.23,192.2,0.0388661]
[1738972067806,0.03994762,192.23,192.22,5.201]
[1738972071112,0.03994762,192.23,192.21,5.2012]
[1738972074115,0.03994762,192.23,192.21,9.41030069]
[1738972074317,0.03994762,192.23,192.22,5.201]
[1738972080921,0.03994762,192.23,192.21,5.2013]
[1738972084521,0.03994762,192.23,192.22,5.201]
[1738972093437,9.41030069,192.31,192.21,9.41030069]
[1738972093726,9.41030069,192.31,192.24,9.41030069]
[1738972094322,9.41030069,192.31,192.27,5.1996]
[1738972094724,0.03363275,192.31,192.27,5.23958476]
[1738972095326,0.03363275,192.31,192.28,5.1993]
[1738972095527,0.03363275,192.31,192.27,0.03998476]
[1738972097530,0.03363275,192.31,192.28,5.1994]
[1738972098128,0.03363275,192.31,192.3,5.1989]
[1738972098430,0.03363275,192.31,192.3,14.60920069]
[1738972098627,3.275e-05,192.31,192.3,14.60920069]
[1738972099633,183.16393275,192.33,192.32,5.1983]
[1738972099831,9.41030069,192.41,192.32,9.41030069]
[1738972100333,9.41030069,192.41,192.35,5.1974]
[1738972100932,0.03570907,192.4,192.36,0.0350952]
[1738972101631,0.03570907,192.4,192.36,5.2322952]
[1738972103733,0.03570907,192.4,192.36,0.0350952]
[1738972103935,0.03570907,192.4,192.37,5.1969]
[1738972105638,9.41030069,192.39,192.36,5.2322952]
[1738972106032,14.60730069,192.37,192.36,0.0350952]
[1738972109437,5.1978,192.34,192.26,70.83975698]
[1738972109638,9.41030069,192.32,192.26,70.83975698]
[1738972109832,9.41030069,192.32,192.28,5.1993]
[1738972110140,9.41030069,192.32,192.26,70.83975698]
[1738972110343,9.41030069,192.32,192.27,5.1995]
[1738972110640,0.035511,192.31,192.28,0.03450451]
[1738972111541,0.035511,192.31,192.28,5.23380451]
[1738972115345,0.035511,192.31,192.3,5.1989]
[1738972121855,183.16393275,192.39,192.34,5.1977]
[1738972122152,183.16393275,192.39,192.34,14.60800069]
[1738972123154,0.03619236,192.38,192.35,0.03776817]
[1738972125152,0.03619236,192.38,192.36,5.1972]
[1738972126055,0.03619236,192.38,192.35,0.03776817]
[1738972126358,0.03619236,192.38,192.37,5.197]
[1738972126954,0.03619236,192.38,192.35,0.03776817]
[1738972127656,9.44649305,192.38,192.35,0.03776817]
[1738972127855,9.41030069,192.36,192.35,0.03776817]
[1738972128059,0.03619236,192.38,192.35,0.03776817]
[1738972128255,0.03619236,192.38,192.36,5.197]
[1738972135467,0.03619236,192.38,192.37,5.197]
[1738972142370,0.03619236,192.38,192.35,0.03776817]
[1738972142569,9.41030069,192.37,192.35,0.03776817]
[1738972142965,14.60750069,192.37,192.35,0.03776817]
[1738972143265,9.41030069,192.37,192.35,0.03776817]
[1738972146273,0.03619236,192.38,192.35,0.03776817]
[1738972147072,0.03619236,192.38,192.37,5.197]
[1738972147477,0.03619236,192.38,192.35,0.03776817]
[1738972148774,0.03619236,192.38,192.35,5.23526817]
[1738972150272,0.03619236,192.38,192.35,0.03776817]
[1738972150575,14.60750069,192.37,192.35,0.03776817]
[1738972151975,9.41030069,192.37,192.35,0.03776817]
[1738972152171,5.1972,192.36,192.35,0.03776817]
[1738972163585,5.1982,192.33,192.26,61.42945629]
[1738972163886,9.41030069,192.32,192.26,61.42945629]
[1738972164377,9.41030069,192.32,192.29,5.1989]
[1738972164776,9.4475828,192.32,192.29,5.23627908]
[1738972167987,9.4475828,192.32,192.29,0.03737908]
[1738972168382,0.03728211,192.32,192.29,0.03737908]
[1738972171289,0.03728211,192.32,192.29,5.23627908]
[1738972172187,0.03728211,192.32,192.3,5.1988]
[1738972172488,0.03728211,192.32,192.29,0.03737908]
[1738972172989,0.03728211,192.32,192.31,5.1986]
[1738972174691,0.03728211,192.32,192.31,14.60890069]
[1738972175995,183.16393275,192.37,192.31,9.41030069]
[1738972176184,9.41030069,192.4,192.34,9.41030069]
[1738972176589,9.41030069,192.4,192.35,5.1973]
[1738972177096,0.03594362,192.39,192.36,0.03668544]
[1738972179886,0.03594362,192.39,192.36,5.23388544]
[1738972180794,0.03594362,192.39,192.36,0.03668544]
[1738972181094,9.41030069,192.38,192.36,0.03668544]
[1738972181395,5.197,192.37,192.36,0.03668544]
[1738972181896,9.41030069,192.38,192.36,0.03668544]
[1738972182095,14.60710069,192.38,192.36,0.03668544]
[1738972182397,9.41030069,192.38,192.36,0.03668544]
[1738972182896,5.197,192.37,192.36,0.03668544]
[1738972183398,5.1978,192.34,192.31,5.1983]
[1738972183699,9.41030069,192.32,192.31,5.1983]
[1738972184191,9.41030069,192.32,192.27,1.6242]
[1738972184192,9.41030069,192.32,192.29,5.1989]
[1738972184598,9.44795023,192.32,192.29,5.23367227]
[1738972185898,9.44795023,192.32,192.29,0.03477227]
[1738972187797,0.03764954,192.32,192.29,0.03477227]
[1738972191210,9.41030069,192.3,192.29,0.03477227]
[1738972194602,14.60920069,192.3,192.29,0.03477227]
[1738972195301,9.41030069,192.3,192.29,0.03477227]
[1738972197509,14.60920069,192.3,192.29,0.03477227]
[1738972197902,9.44795023,192.32,192.29,0.03477227]
[1738972198809,9.44795023,192.32,192.29,5.23387227]
[1738972199207,0.03764954,192.32,192.29,5.23387227]
[1738972200211,14.64635023,192.32,192.29,0.03477227]
[1738972202608,5.1987,192.31,192.29,0.03477227]
[1738972202803,9.41030069,192.3,192.29,0.03477227]
[1738972203506,14.60920069,192.3,192.29,0.03477227]
[1738972212909,5.1996,192.28,192.24,5.2004]
[1738972213110,9.41030069,192.27,192.24,5.2004]
[1738972214008,9.44734212,192.27,192.24,5.23384397]
[1738972215610,9.44734212,192.27,192.24,0.03344397]
[1738972215814,0.03704143,192.27,192.26,5.1999]
[1738972218318,0.03704143,192.27,192.26,14.61020069]
[1738972221811,0.03704143,192.27,192.26,5.1999]
[1738972237943,0.03704143,192.27,192.24,0.03344397]
[1738972238144,9.44734212,192.27,192.24,0.03344397]
[1738972238644,9.44734212,192.27,192.24,5.23364397]
[1738972242348,14.64704212,192.27,192.24,0.03344397]
[1738972242649,9.41030069,192.25,192.24,0.03344397]
[1738972248255,14.61050069,192.25,192.24,0.03344397]
[1738972249859,14.61050069,192.25,192.24,4.397e-05]
[1738972250063,5.2017,192.2,192.18,102.98]
[1738972250358,9.41030069,192.19,192.16,5.2026]
[1738972251162,9.41030069,192.19,192.16,5.23842624]
[1738972251163,14.65112901,192.19,192.16,5.23842624]
[1738972251461,14.65112901,192.19,192.16,0.03582624]
[1738972252159,9.41030069,192.17,192.16,0.03582624]